fUST/lending_fUST_20240508
["ID","MTS","AMOUNT","RATE_DAILY","PERIOD"]
[326636095,1715175048579,-154.655759,0.00018,2]
[326636096,1715175048588,-151.0,0.00018,2]
[326636097,1715175048597,-151.0,0.00018,2]
[326636098,1715175048607,-124.21897007,0.00018,2]
[326636109,1715175048915,-163.10410893,0.00018,2]
[326636110,1715175048927,-151.0,0.00018,2]
[326636111,1715175048938,-151.0,0.00018,2]
[326636112,1715175048947,-301.913917,0.00018,2]
[326636113,1715175048957,-151.0,0.00018,2]
[326636115,1715175048969,-81.98197407,0.00018,2]
[326636324,1715175051189,-151.0,0.00018,2]
[326636326,1715175051198,-151.0,0.00018,2]
[326636328,1715175051208,-151.0,0.00018,2]
[326636330,1715175051217,-151.0,0.00018,2]
[326636332,1715175051226,-277.840666,0.00018,2]
[326636334,1715175051235,-151.0,0.00018,2]
[326636336,1715175051245,-151.0,0.00018,2]
[326636338,1715175051254,-151.0,0.00018,2]
[326636341,1715175051263,-151.0,0.00018,2]
[326636342,1715175051272,-151.0,0.00018,2]
[326636344,1715175051281,-62.54856717,0.00018,2]
[326636365,1715175051465,-88.45143283,0.00018,2]
[326636366,1715175051474,-151.0,0.00018,2]
[326636368,1715175051483,-151.0,0.00018,2]
[326636370,1715175051492,-151.0,0.00018,2]
[326636372,1715175051502,-151.0,0.00018,2]
[326636374,1715175051510,-151.0,0.00018,2]
[326636376,1715175051520,-151.0,0.00018,2]
[326636378,1715175051530,-151.0,0.00018,2]
[326636380,1715175051539,-151.0,0.00018,2]
[326636382,1715175051548,-151.0,0.00018,2]
[326636384,1715175051556,-151.0,0.00018,2]
[326636386,1715175051566,-151.0,0.00018,2]
[326636388,1715175051577,-281.413752,0.00018,2]
[326636390,1715175051586,-151.0,0.00018,2]
[326636392,1715175051595,-151.0,0.00018,2]
[326636394,1715175051605,-189.079399,0.00018,2]
[326636396,1715175051614,-151.0,0.00018,2]
[326636398,1715175051623,-151.0,0.00018,2]
[326636400,1715175051632,-151.0,0.00018,2]
[326636402,1715175051641,-151.0,0.00018,2]
[326636404,1715175051650,-151.0,0.00018,2]
[326636406,1715175051664,-245.206272,0.00018,2]
[326636408,1715175051674,-151.0,0.00018,2]
[326636410,1715175051683,-1067.895596,0.00018,2]
[326636412,1715175051693,-1039.17539878,0.00018,2]
[326636414,1715175051705,-28.72019722,0.00018,2]
[326636416,1715175051714,-1067.895596,0.00018,2]
[326636418,1715175051724,-1067.895596,0.00018,2]
[326636420,1715175051733,-1067.895596,0.00018,2]
[326636422,1715175051742,-1067.895596,0.00018,2]
[326636424,1715175051751,-1067.895596,0.00018,2]
[326636426,1715175051760,-1067.895596,0.00018,2]
[326636428,1715175051769,-151.0,0.00018,2]
[326636429,1715175051778,-1067.895596,0.00018,2]
[326636431,1715175051787,-151.0,0.00018,2]
[326636433,1715175051796,-1067.895596,0.00018,2]
[326636435,1715175051805,-151.0,0.00018,2]
[326636437,1715175051815,-1067.895596,0.00018,2]
[326636439,1715175051826,-1067.895596,0.00018,2]
[326636441,1715175051835,-151.0,0.00018,2]
[326636443,1715175051844,-151.0,0.00018,2]
[326636445,1715175051854,-1067.895596,0.00018,2]
[326636447,1715175051863,-218.726756,0.00018,2]
[326636449,1715175051872,-1067.895596,0.00018,2]
[326636458,1715175051962,-1067.895596,0.00018,2]
[326636459,1715175051973,-1067.895596,0.00018,2]
[326636460,1715175051983,-1067.895596,0.00018,2]
[326636461,1715175051992,-1067.895596,0.00018,2]
[326636462,1715175052001,-1067.895596,0.00018,2]
[326636463,1715175052011,-1067.895605,0.00018,2]
[326636464,1715175052020,-5204.007817,0.00018,2]
[326636465,1715175052030,-5204.007817,0.00018,2]
[326636466,1715175052039,-5204.007817,0.00018,2]
[326636467,1715175052048,-5204.007817,0.00018,2]
[326636468,1715175052057,-5204.007817,0.00018,2]
[326636469,1715175052067,-5204.007817,0.00018,2]
[326636470,1715175052077,-5204.007817,0.00018,2]
[326636471,1715175052086,-5204.007817,0.00018,2]
[326636472,1715175052096,-5204.007817,0.00018,2]
[326636473,1715175052105,-5204.007817,0.00018,2]
[326636474,1715175052114,-5204.007817,0.00018,2]
[326636475,1715175052123,-5204.007817,0.00018,2]
[326636476,1715175052132,-5204.007817,0.00018,2]
[326636477,1715175052141,-5204.007817,0.00018,2]
[326636478,1715175052151,-5204.007817,0.00018,2]
[326636479,1715175052160,-5204.007817,0.00018,2]
[326636480,1715175052170,-5204.007817,0.00018,2]
[326636481,1715175052179,-5204.007817,0.00018,2]
[326636483,1715175052192,-5204.007817,0.00018,2]
[326636485,1715175052201,-169.606845,0.00018,2]
[326636487,1715175052210,-4840.82943748,0.00018,2]
[326636653,1715175266144,24900.0,0.00014988,2]
[326636655,1715175393034,34454.93,0.00026589,120]
[326636656,1715175701279,3456.78149574,9.999e-05,2]
[326636657,1715175799871,154.75239617,9.999e-05,2]
[326636658,1715176124870,1000.0,0.00022,20]
[326636660,1715176245433,-273.165638,0.00015361,2]
[326636662,1715176245443,-377.023446,0.0001589,2]
[326636663,1715176245452,-208.594641,0.0001589,2]
[326636665,1715176245461,-894.24108922,0.00016,2]
[326636667,1715176245471,-3000.0,0.00016254,2]
[326636669,1715176245480,-1000.0,0.00016392,2]
[326636671,1715176245489,-154.79866913,0.00016398,2]
[326636673,1715176245498,-193.83648101,0.00016398,2]
[326636676,1715176245508,-192.37417711,0.00016398,2]
[326636678,1715176245517,-1893.19317664,0.00016398,2]
[326636680,1715176245527,-174.08442524,0.00016398,2]
[326636682,1715176245536,-1347.83105685,0.00016398,2]
[326636684,1715176245545,-975.11062851,0.00016399,2]
[326636685,1715176245554,-1000.0,0.00016399,2]
[326636687,1715176245563,-46003.31677261,0.000164,2]
[326636689,1715176245572,-273.39263722,0.000165,2]
[326636691,1715176245581,-2150.09488041,0.00016631,2]
[326636693,1715176245590,-717.08201298,0.00016632,2]
[326636755,1715176248304,-9603.9914224,0.00016632,2]
[326636759,1715176248321,-4245.82792775,0.00016632,2]
[326636761,1715176248334,-999.9933705,0.00016632,2]
[326636787,1715176248478,-3857.5,0.00016632,2]
[326636842,1715176251296,-5475.60526637,0.00016632,2]
[326636844,1715176251306,-436.93572855,0.00017799,2]
[326636846,1715176251316,-154.86104908,0.00017997,2]
[326636848,1715176251327,-1336.08187875,0.00017997,2]
[326636849,1715176251336,-156.48623995,0.00017997,2]
[326636850,1715176251347,-4905.51255345,0.00017999,2]
[326636851,1715176251359,-9203.58068984,0.00017999,2]
[326636852,1715176251372,-27713.67269149,0.00017999,2]
[326636853,1715176251384,-8698.04645951,0.00017999,2]
[326636854,1715176272751,154.721501,0.0001,2]
[326636855,1715176276366,309.25500651,9.999e-05,2]
[326636856,1715176314110,521.97378661,9.999e-05,2]
[326636857,1715176876838,521.97378661,9.999e-05,2]
[326636858,1715177059539,204.45817394,9.999e-05,2]
[326636879,1715177435779,-193.99110083,0.00015794,2]
[326636881,1715177435789,-1054.84097512,0.00015794,2]
[326636883,1715177435799,-475.23279781,0.00015794,2]
[326636884,1715177435808,-891.52667903,0.00015794,2]
[326636885,1715177435820,-230.20249366,0.00015794,2]
[326636886,1715177435830,-236.00965182,0.00015794,2]
[326636887,1715177435839,-154.73694719,0.00015794,2]
[326636888,1715177435848,-154.73694719,0.00015794,2]
[326636889,1715177435857,-158.13417593,0.00015795,2]
[326636890,1715177435866,-872.23484799,0.00015796,2]
[326636916,1715177441648,-2983.76275138,0.00015796,2]
[326636918,1715177441661,-805.32512728,0.00015796,2]
[326636920,1715177441675,-2770.73241547,0.00015796,2]
[326636922,1715177441687,-16619.95000001,0.00015796,2]
[326637613,1715177448736,-637.9026,0.00015796,2]
[326637616,1715177448748,-210.09225787,0.00015796,2]
[326637618,1715177448758,-159.166864,0.0001589,2]
[326637620,1715177448767,-894.24108922,0.00016,2]
[326637624,1715177448776,-371.45821848,0.00016399,2]
[326637627,1715177448788,-628.54178152,0.00016399,2]
[326637630,1715177448797,-273.39263722,0.000165,2]
[326637634,1715177448806,-1000.0,0.00016631,2]
[326637637,1715177448816,-154.76784823,0.00016976,2]
[326637641,1715177448825,-584.11436245,0.00016976,2]
[326637644,1715177448834,-316.2627358,0.00016976,2]
[326637647,1715177448844,-228.89821731,0.00016976,2]
[326637650,1715177448853,-154.73694719,0.00016976,2]
[326637652,1715177448864,-154.73694719,0.00016977,2]
[326637654,1715177448873,-153.0,0.00017534,2]
[326637656,1715177448882,-153.0,0.00017534,2]
[326637658,1715177448891,-153.0,0.00017534,2]
[326637660,1715177448900,-153.0,0.00017534,2]
[326637662,1715177448910,-153.0,0.00017534,2]
[326637664,1715177448920,-153.0,0.00017534,2]
[326637666,1715177448929,-306.7911321,0.00017712,2]
[326637668,1715177448939,-2187.4442396,0.00017997,2]
[326637670,1715177448949,-308.95274817,0.00017997,2]
[326637672,1715177448959,-1381.70780638,0.00017997,2]
[326637674,1715177448969,-469.39449574,0.00017997,2]
[326637676,1715177448978,-504.80601113,0.00017998,2]
[326637678,1715177448988,-13684.12631195,0.00017999,2]
[326637680,1715177448998,-7949.13788461,0.00018,2]
[326637682,1715177449007,-604.62485122,0.000185,2]
[326637684,1715177449017,-349.54858284,0.00018899,2]
[326637686,1715177449026,-9718.0351287,0.000189,2]
[326637688,1715177449036,-464.69,0.0001899,3]
[326637690,1715177449045,-309.2886854,0.00018998,2]
[326637692,1715177449055,-3000.0,0.00018999,2]
[326637694,1715177449064,-3000.0,0.00018999,2]
[326637696,1715177449074,-3000.0,0.00018999,2]
[326637698,1715177449084,-3000.0,0.00018999,2]
[326637700,1715177449093,-3000.0,0.00018999,2]
[326637702,1715177449104,-31398.6542351,0.00019,2]
[326637704,1715177449113,-174.87774897,0.00019,2]
[326637706,1715177449122,-267.22338213,0.00019099,2]
[326637708,1715177449132,-25206.34646879,0.000191,2]
[326637710,1715177449144,-2754.48049331,0.000191,2]
[326637827,1715177825040,154.73694719,9.999e-05,2]
[326637828,1715178301471,154.73694719,9.999e-05,2]
[326637829,1715178641868,-154.86040341,0.00015795,2]
[326637830,1715178641878,-408.584913,0.0001589,2]
[326637831,1715178641890,-94.80009043,0.00016,2]
[326637872,1715178644073,-799.44099879,0.00016,2]
[326637876,1715178644083,-155.13745691,0.00016502,2]
[326637880,1715178644095,-154.73694719,0.00016502,2]
[326637883,1715178644107,-155.07365388,0.00016503,2]
[326637886,1715178644117,-13735.61094323,0.00016504,2]
[326637890,1715178644129,-989.85259935,0.00016504,2]
[326637893,1715178644142,-2997.95400002,0.00016504,2]
[326637896,1715178644154,-7176.5824574,0.00016504,2]
[326637899,1715178644164,-7916.7175426,0.00018,2]
[326638092,1715178646125,-32.42034201,0.00018,2]
[326638094,1715178646135,-356.6527236,0.000185,2]
[326638315,1715178648590,-353.095,0.0001589,2]
[326638320,1715178648603,-191.237914,0.0001589,2]
[326638323,1715178648616,-247.97212762,0.000185,2]
[326638328,1715178648626,-153.942143,0.000189,2]
[326638334,1715178648636,-6478.6900858,0.000189,2]
[326638341,1715178648646,-279.63886628,0.00019078,2]
[326638347,1715178648656,-3388.47783665,0.00019078,2]
[326638352,1715178648665,-1026.35919841,0.00019098,2]
[326638356,1715178648675,-524.11454042,0.00019098,2]
[326638359,1715178648685,-272.43557424,0.00019099,2]
[326638360,1715178648695,-10005.55712951,0.000191,2]
[326638363,1715178648704,-1122.69830497,0.00019158,2]
[326638365,1715178648714,-461.37499392,0.00019178,2]
[326638366,1715178648723,-500.0,0.00019178,2]
[326638368,1715178648733,-500.0,0.00019178,2]
[326638370,1715178648742,-500.0,0.00019178,2]
[326638373,1715178648752,-500.0,0.00019178,2]
[326638375,1715178648762,-500.0,0.00019178,2]
[326638377,1715178648772,-500.0,0.00019178,2]
[326638378,1715178648782,-500.0,0.00019178,2]
[326638381,1715178648792,-197.13199742,0.00019178,2]
[326638383,1715178648803,-500.0,0.00019178,2]
[326638385,1715178648814,-187.46582042,0.00019178,2]
[326638387,1715178648824,-500.0,0.00019178,2]
[326638389,1715178648833,-500.0,0.00019178,2]
[326638391,1715178648843,-500.0,0.00019178,2]
[326638393,1715178648854,-164.22278091,0.00019178,2]
[326638395,1715178648865,-500.0,0.00019178,2]
[326638397,1715178648875,-275.23837051,0.00019178,2]
[326638399,1715178648885,-500.0,0.00019178,2]
[326638401,1715178648894,-580.47310089,0.00019178,2]
[326638403,1715178648904,-500.0,0.00019178,2]
[326638405,1715178648914,-500.0,0.00019178,2]
[326638407,1715178648924,-580.47310089,0.00019178,2]
[326638409,1715178648934,-500.0,0.00019178,2]
[326638411,1715178648944,-580.47310088,0.00019178,2]
[326638413,1715178648954,-500.0,0.00019178,2]
[326638415,1715178648963,-580.47310088,0.00019178,2]
[326638417,1715178648973,-500.0,0.00019178,2]
[326638419,1715178648982,-580.47310088,0.00019178,2]
[326638421,1715178648992,-500.0,0.00019178,2]
[326638423,1715178649002,-531.36068721,0.00019178,2]
[326638425,1715178649014,-531.36068721,0.00019178,2]
[326638426,1715178649024,-500.0,0.00019178,2]
[326638429,1715178649034,-500.0,0.00019178,2]
[326638431,1715178649044,-531.36068721,0.00019178,2]
[326638432,1715178649054,-500.0,0.00019178,2]
[326638434,1715178649064,-531.36068721,0.00019178,2]
[326638436,1715178649074,-500.0,0.00019178,2]
[326638439,1715178649084,-531.36068721,0.00019178,2]
[326638440,1715178649096,-500.0,0.00019178,2]
[326638443,1715178649106,-531.36068721,0.00019178,2]
[326638444,1715178649118,-500.0,0.00019178,2]
[326638446,1715178649128,-531.36068721,0.00019178,2]
[326638449,1715178649138,-500.0,0.00019178,2]
[326638450,1715178649148,-531.36068721,0.00019178,2]
[326638453,1715178649158,-185.374187,0.00019178,2]
[326638454,1715178649168,-239.113685,0.00019178,2]
[326638456,1715178649178,-403.9,0.00019183,2]
[326638458,1715178649189,-150.0,0.00019183,2]
[326638460,1715178649199,-153.0,0.0001926,2]
[326638462,1715178649208,-153.0,0.0001926,2]
[326638464,1715178649217,-279.63886624,0.00019284,2]
[326638466,1715178649229,-279.63886624,0.00019489,2]
[326638467,1715178649239,-279.63886624,0.00019695,2]
[326638469,1715178649249,-512.08692667,0.00019899,2]
[326638471,1715178649258,-500.0,0.00019899,2]
[326638473,1715178649268,-228.13515676,0.00019899,2]
[326638474,1715178649280,-199.93671501,0.00019899,2]
[326638475,1715178649290,-299.97287786,0.00019899,2]
[326638476,1715178649299,-2000.0,0.000199,2]
[326638477,1715178649309,-55555.0,0.000199,2]
[326638478,1715178649319,-279.63886624,0.000199,2]
[326638479,1715178649329,-266.32668051,0.00019996,2]
[326638480,1715178649339,-19905.7810395,0.00019998,5]
[326638481,1715178649348,-255.67866336,0.00019998,2]
[326638482,1715178649358,-301.46911718,0.00019998,2]
[326638483,1715178649368,-281.47653233,0.00019998,2]
[326638484,1715178649378,-200.56328493,0.00019998,2]
[326638485,1715178649389,-263.871444,0.00019998,2]
[326638486,1715178649399,-702.50594434,0.00019998,2]
[326638487,1715178649408,-5312.52210828,0.00019998,2]
[326638488,1715178649418,-251.65121823,0.00019998,2]
[326638489,1715178649427,-154.80968392,0.00019998,2]
[326638490,1715178649437,-160.0,0.00019999,2]
[326638491,1715178649446,-20840.56603001,0.0002,2]
[326638492,1715178649456,-40775.99001056,0.0002,2]
[326638493,1715178649466,-67507.49755129,0.0002,2]
[326638494,1715178649476,-379.96231687,0.0002,2]
[326638495,1715178649585,-330.43257549,0.0002,2]
[326638496,1715178649595,-5467.6138057,0.0002,2]
[326638497,1715178649605,-245.6801007,0.0002,2]
[326638498,1715178649615,-400.0,0.0002,2]
[326638499,1715178649624,-172.41737463,0.0002,2]
[326638500,1715178649633,-7113.85552401,0.0002,2]
[326638501,1715178649643,-200.0,0.0002,2]
[326638502,1715178649652,-1816.3618899,0.0002,4]
[326638503,1715178649662,-328.13909225,0.0002,2]
[326638504,1715178649672,-279.0021805,0.0002,2]
[326638505,1715178649681,-285.78530734,0.0002,2]
[326638506,1715178649691,-167.87512938,0.0002,2]
[326638507,1715178649700,-300.000001,0.0002,2]
[326638508,1715178649710,-154.75239617,0.0002,2]
[326638509,1715178649720,-52516.44035797,0.0002,2]
[326638510,1715178649729,-4239.70384687,0.0002,2]
[326638511,1715178649739,-53148.17017338,0.0002,2]
[326638512,1715178649748,-14998.0,0.0002,2]
[326638513,1715178649758,-1500.0,0.0002,2]
[326638514,1715178649768,-1500.0,0.0002,2]
[326638515,1715178649777,-1500.0,0.0002,2]
[326638516,1715178649786,-1500.0,0.0002,2]
[326638517,1715178649796,-1500.0,0.0002,2]
[326638519,1715178649805,-1500.0,0.0002,2]
[326638521,1715178649816,-1526.46,0.0002,2]
[326638523,1715178649825,-205.44382383,0.0002,2]
[326638525,1715178649834,-200.0,0.0002,2]
[326638527,1715178649844,-542.266915,0.0002,2]
[326638529,1715178649853,-542.266915,0.0002,2]
[326638530,1715178649863,-542.266915,0.0002,2]
[326638532,1715178649872,-542.266915,0.0002,2]
[326638534,1715178649882,-542.266915,0.0002,2]
[326638536,1715178649891,-542.266915,0.0002,2]
[326638538,1715178649901,-542.266915,0.0002,2]
[326638541,1715178649910,-542.266915,0.0002,2]
[326638542,1715178649920,-542.266915,0.0002,2]
[326638544,1715178649929,-2267.257709,0.0002,2]
[326638546,1715178649939,-2267.257709,0.0002,2]
[326638548,1715178649948,-542.266915,0.0002,2]
[326638550,1715178649958,-246.177806,0.0002,2]
[326638551,1715178649967,-2267.257709,0.0002,2]
[326638552,1715178649976,-246.177806,0.0002,2]
[326638553,1715178649985,-2267.257709,0.0002,2]
[326638554,1715178649994,-2267.257709,0.0002,2]
[326638555,1715178650003,-542.266915,0.0002,2]
[326638556,1715178650016,-2267.257709,0.0002,2]
[326638557,1715178650025,-246.177806,0.0002,2]
[326638558,1715178650035,-2267.257709,0.0002,2]
[326638559,1715178650044,-542.266915,0.0002,2]
[326638560,1715178650054,-246.177806,0.0002,2]
[326638561,1715178650063,-2267.257709,0.0002,2]
[326638563,1715178650073,-246.177806,0.0002,2]
[326638565,1715178650082,-542.266915,0.0002,2]
[326638566,1715178650094,-2267.257709,0.0002,2]
[326638567,1715178650103,-246.177806,0.0002,2]
[326638568,1715178650113,-151.0,0.0002,2]
[326638569,1715178650123,-542.266915,0.0002,2]
[326638570,1715178650132,-2267.257709,0.0002,2]
[326638571,1715178650141,-542.266915,0.0002,2]
[326638572,1715178650150,-2267.257709,0.0002,2]
[326638573,1715178650159,-151.0,0.0002,2]
[326638574,1715178650169,-246.177806,0.0002,2]
[326638575,1715178650178,-151.0,0.0002,2]
[326638576,1715178650188,-542.266915,0.0002,2]
[326638577,1715178650197,-220.018025,0.0002,2]
[326638578,1715178650206,-2267.257709,0.0002,2]
[326638579,1715178650215,-246.177806,0.0002,2]
[326638580,1715178650224,-246.177806,0.0002,2]
[326638581,1715178650234,-246.177806,0.0002,2]
[326638582,1715178650243,-246.177806,0.0002,2]
[326638583,1715178650252,-246.177806,0.0002,2]
[326638584,1715178650261,-2267.257709,0.0002,2]
[326638585,1715178650271,-246.177806,0.0002,2]
[326638586,1715178650280,-2267.257709,0.0002,2]
[326638587,1715178650289,-246.177806,0.0002,2]
[326638588,1715178650298,-2267.257709,0.0002,2]
[326638589,1715178650308,-2267.257709,0.0002,2]
[326638590,1715178650318,-246.177806,0.0002,2]
[326638591,1715178650327,-246.177806,0.0002,2]
[326638592,1715178650336,-151.0,0.0002,2]
[326638593,1715178650346,-212.17838152,0.0002,2]
[326638594,1715178650355,-151.0,0.0002,2]
[326638595,1715178650366,-151.0,0.0002,2]
[326638596,1715178650375,-383.322009,0.0002,2]
[326638597,1715178650384,-383.322009,0.0002,2]
[326638598,1715178650393,-383.322009,0.0002,2]
[326638599,1715178650403,-383.322009,0.0002,2]
[326638600,1715178650412,-383.322009,0.0002,2]
[326638601,1715178650421,-383.322009,0.0002,2]
[326638602,1715178650430,-383.322009,0.0002,2]
[326638603,1715178650439,-383.322009,0.0002,2]
[326638604,1715178650448,-4115.00903,0.0002,2]
[326638605,1715178650458,-383.322009,0.0002,2]
[326638606,1715178650471,-4115.00903,0.0002,2]
[326638607,1715178650481,-383.322009,0.0002,2]
[326638608,1715178650490,-4115.00903,0.0002,2]
[326638609,1715178650499,-645.13491525,0.00020116,2]
[326638610,1715178650508,-1685.75404763,0.00020136,2]
[326638611,1715178650517,-391.61322953,0.000203,2]
[326638612,1715178650526,-403.9,0.00020519,2]
[326638613,1715178650535,-150.0,0.00020519,2]
[326638614,1715178650575,-162.93320162,0.00020912,2]
[326638615,1715178650595,-163.63739166,0.00020912,2]
[326638616,1715178650604,-155.8831673,0.00020912,2]
[326638617,1715178650615,-277.31837827,0.00020912,2]
[326638618,1715178650624,-200.0,0.00020912,2]
[326638619,1715178650634,-214.01050904,0.00020912,2]
[326638620,1715178650643,-162.65609046,0.00020912,2]
[326638621,1715178650653,-171.01007263,0.00020912,2]
[326638622,1715178650662,-265.96631983,0.00020912,2]
[326638623,1715178650672,-286.14089474,0.00020912,2]
[326638624,1715178650681,-155.16959342,0.00020912,2]
[326638625,1715178650691,-3157.2831088,0.00021,7]
[326638626,1715178650700,-197.46538583,0.00021,2]
[326638627,1715178650709,-10021.50074893,0.00021,2]
[326638628,1715178650718,-236.86260148,0.00021,2]
[326638629,1715178650728,-39581.20312761,0.00021,2]
[326638630,1715178650737,-1042.34181435,0.00021,7]
[326638631,1715178650747,-2084.68362869,0.00021,7]
[326638632,1715178650756,-542.266915,0.00021,2]
[326638633,1715178650765,-542.266915,0.00021,2]
[326638634,1715178650775,-2267.257709,0.00021,2]
[326638635,1715178650784,-2267.257709,0.00021,2]
[326638636,1715178650793,-542.266915,0.00021,2]
[326638637,1715178650803,-246.177806,0.00021,2]
[326638638,1715178650814,-542.266916,0.00021,2]
[326638639,1715178650823,-246.177806,0.00021,2]
[326638640,1715178650832,-2267.257709,0.00021,2]
[326638641,1715178650842,-2267.257712,0.00021,2]
[326638642,1715178650851,-246.177806,0.00021,2]
[326638643,1715178650861,-246.177805,0.00021,2]
[326638644,1715178650870,-1000.0,0.00021,2]
[326638645,1715178650879,-383.322009,0.00021,2]
[326638646,1715178650888,-383.322009,0.00021,2]
[326638647,1715178650898,-280.0,0.000211,2]
[326638648,1715178650907,-160.0,0.000211,2]
[326638649,1715178650916,-160.0,0.000211,2]
[326638650,1715178650925,-621.25674576,0.00021121,2]
[326638651,1715178650935,-153.0,0.00021178,2]
[326638652,1715178650948,-153.0,0.00021178,2]
[326638653,1715178650957,-153.0,0.00021178,2]
[326638654,1715178650966,-1000.0,0.000215,2]
[326638655,1715178650975,-1000.0,0.00021617,2]
[326638656,1715178650984,-1000.0,0.00021627,2]
[326638657,1715178650994,-1000.0,0.00021635,2]
[326638658,1715178651003,-1000.0,0.00021637,2]
[326638659,1715178651017,-354.991149,0.00021644,2]
[326638660,1715178651027,-1014.58238801,0.0002166,2]
[326638661,1715178651036,-1000.0,0.00021699,2]
[326638662,1715178651045,-1000.0,0.00021731,2]
[326638663,1715178651055,-1000.0,0.00021741,2]
[326638664,1715178651065,-1000.0,0.00021775,2]
[326638665,1715178651075,-1000.0,0.00021796,2]
[326638666,1715178651084,-1000.0,0.00021802,2]
[326638667,1715178651093,-1000.0,0.00021824,2]
[326638668,1715178651102,-1000.0,0.00021837,2]
[326638669,1715178651115,-414.54826837,0.0002184,2]
[326638670,1715178651125,-1000.0,0.00021841,2]
[326638671,1715178651134,-403.9,0.00021856,3]
[326638672,1715178651147,-150.0,0.00021856,3]
[326638673,1715178651159,-1000.0,0.00021862,2]
[326638674,1715178651241,-155.81586083,0.0002191,2]
[326638675,1715178651251,-10000.0,0.00021918,2]
[326638676,1715178651260,-166.666666,0.00021918,2]
[326638677,1715178651270,-259.757541,0.00021918,2]
[326638678,1715178651279,-259.757541,0.00021918,2]
[326638679,1715178651288,-259.757541,0.00021918,2]
[326638680,1715178651298,-259.757541,0.00021918,2]
[326638681,1715178651307,-259.757541,0.00021918,2]
[326638682,1715178651316,-259.757541,0.00021918,2]
[326638683,1715178651325,-259.757541,0.00021918,2]
[326638684,1715178651334,-259.757541,0.00021918,2]
[326638685,1715178651343,-259.757541,0.00021918,2]
[326638686,1715178651353,-259.757541,0.00021918,2]
[326638687,1715178651363,-259.757541,0.00021918,2]
[326638688,1715178651372,-259.757541,0.00021918,2]
[326638689,1715178651382,-259.757541,0.00021918,2]
[326638690,1715178651391,-259.757541,0.00021918,2]
[326638691,1715178651400,-259.757541,0.00021918,2]
[326638692,1715178651410,-259.757541,0.00021918,2]
[326638693,1715178651420,-259.757541,0.00021918,2]
[326638694,1715178651429,-259.757541,0.00021918,2]
[326638695,1715178651439,-259.757541,0.00021918,2]
[326638696,1715178651448,-259.75754,0.00021918,2]
[326638697,1715178651457,-461.2961289,0.00021918,2]
[326638698,1715178651466,-159.42165086,0.00022,2]
[326638699,1715178651476,-991.55469962,0.00022,2]
[326638700,1715178651485,-170.87407631,0.00022,2]
[326638701,1715178651494,-12774.11705581,0.00022,2]
[326638702,1715178651503,-3966.74516132,0.00022,2]
[326638703,1715178651513,-154.73694719,0.00022,2]
[326638704,1715178651528,-10615.15949594,0.00022,2]
[326638705,1715178651540,-123374.17724521,0.00022,2]
[326638706,1715178651550,-154.73694719,0.00022,2]
[326638707,1715178651559,-155.21934029,0.00022,2]
[326638708,1715178651569,-316.0,0.00022,2]
[326638709,1715178651578,-150.0,0.00022,2]
[326638710,1715178651599,-1000.0,0.00022,2]
[326638711,1715178651610,-150.0,0.00022114,2]
[326638712,1715178651621,-150.0,0.00022114,2]
[326638713,1715178651631,-5967.61074206,0.00022121,2]
[326638714,1715178651641,-5000.0,0.00022121,2]
[326638715,1715178651652,-5000.0,0.00022121,2]
[326638716,1715178651662,-5000.0,0.00022121,2]
[326638717,1715178651673,-5000.0,0.00022121,2]